bitfinex/quotes_SOLUSD_20251103
["timestamp","ask_amount","ask_price","bid_price","bid_amount"]
[1762128002129,32.09418002,188.12,188.11,7.02978833]
[1762128002325,22.30535233,188.12,188.11,7.02978833]
[1762128002525,15.98,188.12,188.11,7.02978833]
[1762128002732,15.98,188.16,188.11,7.02978833]
[1762128003242,17.97999999,188.16,188.11,7.02978833]
[1762128003437,15.98,188.16,188.11,7.02978833]
[1762128003618,1.99999999,188.16,188.11,7.02978833]
[1762128003820,4.77939758,188.18,188.11,7.02978833]
[1762128004042,20.75939758,188.18,188.11,7.71978833]
[1762128004228,20.75939758,188.18,188.11,7.02978833]
[1762128004431,15.98,188.16,188.11,1e-08]
[1762128005521,17.97999999,188.16,188.11,1e-08]
[1762128005932,63.15441127,188.16,188.11,1e-08]
[1762128006440,47.17441127,188.16,188.11,1e-08]
[1762128006633,47.17441127,188.16,188.0,0.2]
[1762128006634,1.99999999,188.07,188.0,0.2]
[1762128006835,9.78882769,188.1,188.0,0.2]
[1762128006836,1.99999999,188.08,188.0,0.2]
[1762128007030,9.65999005,188.09,188.0,0.2]
[1762128007357,7.65999006,188.09,188.0,0.86]
[1762128007722,18.6091025,188.08,188.0,0.86]
[1762128007922,18.6091025,188.08,188.0,0.2]
[1762128008121,18.6091025,188.08,188.01,0.66]
[1762128008423,45.19353465,188.08,188.01,0.66]
[1762128009022,45.19353465,188.08,188.0,0.2]
[1762128009323,9.78882769,188.07,187.97,0.2]
[1762128009549,35.51622353,188.07,187.97,0.2]
[1762128009748,45.19834094,188.06,187.97,0.86]
[1762128010537,45.19834094,188.06,187.97,0.2]
[1762128010724,25.76882769,188.05,187.93,0.2]
[1762128011045,9.78882769,187.98,187.93,0.2]
[1762128011222,1.99999999,187.97,187.93,1e-08]
[1762128011422,1.99999999,187.98,187.93,1e-08]
[1762128011730,18.61900201,187.98,187.93,0.66000001]
[1762128012230,18.61900201,187.98,187.93,1e-08]
[1762128013740,13.29928715,187.98,187.93,1e-08]
[1762128014133,13.29928715,187.98,187.93,0.66000001]
[1762128014330,13.29928715,187.98,187.93,1e-08]
[1762128014832,13.29928715,187.98,187.93,0.66000001]
[1762128015739,26.59574468,188.0,187.93,0.66000001]
[1762128017058,3.16326477,187.99,187.93,0.66000001]
[1762128017549,26.59574468,188.0,187.93,0.66000001]
[1762128018257,3.16162014,187.99,187.93,0.66000001]
[1762128018463,26.59574468,188.0,187.93,0.66000001]
[1762128019846,45.20314825,188.04,187.93,0.66000001]
[1762128020037,3.1603293,188.03,187.93,0.66000001]
[1762128020737,3.1603293,188.03,187.94,9.78882769]
[1762128021129,3.1603293,188.03,187.95,0.66]
[1762128021735,45.20795658,188.02,187.95,0.66]
[1762128021935,3.1603293,188.01,187.95,0.66]
[1762128023848,18.61702127,188.0,187.95,0.66]
[1762128025163,3.16457623,187.99,187.95,0.66]
[1762128026070,18.61900201,187.98,187.95,0.66]
[1762128027268,45.20795658,188.02,187.95,0.66]
[1762128027474,3.16936708,188.01,187.95,0.66]
[1762128027772,19.14936708,188.01,187.93,0.68000001]
[1762128027957,15.98,187.99,187.93,1e-08]
[1762128028159,15.98,187.97,187.93,1e-08]
[1762128028468,3.16936708,187.96,187.93,1e-08]
[1762128028789,3.16936708,187.96,187.94,0.68]
[1762128029074,45.21276595,188.0,187.93,1e-08]
[1762128029384,3.1722841,187.99,187.93,1e-08]
[1762128029693,10.91967995,187.99,187.93,1e-08]
[1762128029978,19.1522841,187.98,187.93,1e-08]
[1762128030153,19.1522841,187.97,187.93,1e-08]
[1762128030353,3.1722841,187.96,187.93,1e-08]
[1762128031169,5.32056397,187.95,187.93,1e-08]
[1762128031389,3.1722841,187.94,187.93,1e-08]
[1762128032260,5.32056397,187.95,187.93,1e-08]
[1762128033662,21.30056397,187.95,187.93,1e-08]
[1762128034458,25.76882769,187.94,187.93,1e-08]
[1762128034662,25.76882769,187.94,187.81,0.2]
[1762128034663,15.98,187.9,187.81,0.2]
[1762128035381,15.98,187.88,187.81,0.2]
[1762128036368,9.78882769,187.87,187.74,9.98882769]
[1762128036573,26.43882769,187.87,187.74,0.2]
[1762128036771,25.76882769,187.85,187.74,0.2]
[1762128037082,32.96936373,187.85,187.74,0.2]
[1762128037385,55.24401132,187.84,187.74,0.2]
[1762128037676,3.55989191,187.83,187.74,0.2]
[1762128037884,3.55989191,187.83,187.75,0.66]
[1762128038766,18.63486315,187.82,187.75,0.66]
[1762128038965,3.55989191,187.81,187.75,0.66]
[1762128040989,18.6368477,187.8,187.75,0.66]
[1762128042473,26.62123309,187.82,187.75,0.66]
[1762128042674,3.55217829,187.81,187.75,0.66]
[1762128043778,18.6368477,187.8,187.75,0.66]
[1762128044200,45.26091585,187.8,187.75,0.66]
[1762128044378,45.26091585,187.8,187.74,0.2]
[1762128044781,18.6368477,187.8,187.74,0.86]
[1762128045879,20.592,187.81,187.74,0.86]
[1762128046776,20.592,187.81,187.74,0.2]
[1762128046990,20.592,187.81,187.75,0.66]
[1762128047995,18.6368477,187.8,187.75,0.66]
[1762128051085,5.32481363,187.8,187.76,9.78882769]
[1762128051281,5.32481363,187.8,187.74,0.2]
[1762128051282,5.32481363,187.8,187.78,9.78882769]
[1762128051712,5.32481363,187.8,187.79,0.66]
[1762128051918,13.30837409,187.86,187.79,10.44882769]
[1762128052398,18.63148704,187.86,187.8,0.66]
[1762128053797,18.63287903,187.84,187.8,0.66]
[1762128055188,3.55720435,187.83,187.77,0.66]
[1762128055804,18.63486315,187.82,187.77,0.66]
[1762128056409,34.61486315,187.82,187.77,0.66]
[1762128056605,3.55786202,187.81,187.74,9.98882769]
[1762128056920,3.55786202,187.81,187.75,0.66]
[1762128057620,3.55788102,187.81,187.75,0.66]
[1762128057914,3.55788102,187.82,187.75,0.66]
[1762128058519,18.63585538,187.81,187.75,0.66]
[1762128060918,13.31132527,187.81,187.75,0.66]
[1762128062034,13.31132527,187.81,187.76,9.78882769]
[1762128062509,13.31132527,187.81,187.77,0.66]
[1762128062905,5.32396315,187.83,187.78,9.78882769]
[1762128063104,5.32396315,187.83,187.79,0.66]
[1762128063408,18.63387104,187.83,187.79,0.66]
[1762128064723,18.63387104,187.83,187.8,9.78882769]
[1762128064929,18.63089534,187.86,187.8,9.78882769]
[1762128065104,18.63089534,187.86,187.81,0.66]
[1762128066505,13.30593868,187.89,187.82,9.78882769]
[1762128066705,5.3225463,187.88,187.82,9.78882769]
[1762128066909,18.62395572,187.93,187.84,9.78882769]
[1762128067128,3.56220141,187.92,187.85,0.72]
[1762128067426,20.592,187.9,187.76,0.72]
[1762128067716,3.56333368,187.89,187.77,9.78882769]
[1762128068025,3.56333368,187.9,187.77,10.50882769]
[1762128068201,20.592,187.88,187.79,9.78882769]
[1762128068400,3.56544544,187.87,187.79,9.78882769]
[1762128068596,3.56544544,187.87,187.81,9.78882769]
[1762128068800,20.592,187.89,187.81,9.78882769]
[1762128069117,18.62990365,187.87,187.82,0.72]
[1762128069797,18.62990365,187.87,187.83,9.78882769]
[1762128070003,5.32282961,187.87,187.84,0.72]
[1762128071304,18.62905853,187.88,187.84,0.72]
[1762128072311,5.3225463,187.88,187.84,0.72]
[1762128073037,8.89402746,187.89,187.84,0.72]
[1762128073545,8.89402746,187.89,187.85,9.78882769]
[1762128073703,5.3222966,187.89,187.85,9.78882769]
[1762128073905,5.3222966,187.89,187.86,0.72]
[1762128074834,5.32197977,187.9,187.86,0.72]
[1762128075037,18.62692921,187.9,187.86,0.72]
[1762128075242,19.30692921,187.9,187.79,20.592]
[1762128075539,18.62692921,187.9,187.8,10.50882769]
[1762128075824,3.57364998,187.89,187.8,10.50882769]
[1762128076027,3.57364998,187.89,187.81,10.50882769]
[1762128076508,3.57364998,187.89,187.83,9.78882769]
[1762128076708,18.62891206,187.88,187.83,9.78882769]
[1762128076903,3.57364998,187.87,187.84,0.72]
[1762128077318,3.57364998,187.87,187.82,0.72]
[1762128078731,5.32311295,187.86,187.83,9.78882769]
[1762128078937,5.32311295,187.86,187.84,0.72]
[1762128080810,13.30636576,187.88,187.84,0.72]
[1762128081522,5.32226302,187.89,187.85,9.78882769]
[1762128081724,8.8965475,187.89,187.85,9.78882769]
[1762128081928,8.8965475,187.89,187.86,0.72]
[1762128082633,5.32084707,187.94,187.87,9.78882769]
[1762128082935,13.30282552,187.93,187.87,9.78882769]
[1762128083110,13.30282552,187.93,187.88,0.72]
[1762128083111,3.57348788,187.92,187.88,0.72]
[1762128083937,5.32169655,187.91,187.88,0.72]
[1762128084118,18.62593794,187.91,187.88,0.72]
[1762128084323,18.62593794,187.91,187.87,9.78882769]
[1762128084531,18.62593794,187.91,187.84,0.72]
[1762128084733,4.25216144,187.9,187.84,0.72]
[1762128085338,3.57216144,187.9,187.84,0.72]
[1762128086423,18.62792058,187.89,187.84,0.72]
[1762128087338,3.57294832,187.88,187.84,0.72]
[1762128087542,5.32282961,187.87,187.84,0.72]
[1762128088525,5.32243783,187.89,187.85,9.78882769]
[1762128088922,5.32243783,187.89,187.86,0.68]
[1762128089756,13.30565756,187.89,187.86,0.68]
[1762128090249,5.32197977,187.9,187.86,0.68]
[1762128090416,5.32197977,187.9,187.87,9.78882769]
[1762128090617,3.57394879,187.91,187.87,9.78882769]
[1762128090618,5.32172862,187.91,187.87,9.78882769]
[1762128090845,5.32172862,187.91,187.89,9.78882769]
[1762128091134,5.32172862,187.91,187.9,0.68]
[1762128091727,18.62395572,187.93,187.9,0.68]
[1762128091928,3.57340602,187.92,187.9,0.68]
[1762128092627,5.3211302,187.93,187.9,0.68]
[1762128093035,18.62395572,187.93,187.9,0.68]
[1762128093825,19.30098318,187.96,187.9,0.68]
[1762128094149,3.57275568,187.95,187.88,0.68]
[1762128094448,4.25275568,187.95,187.88,0.68]
[1762128094626,0.68,187.94,187.88,0.68]
[1762128095242,18.62395572,187.93,187.88,0.68]
[1762128095431,3.57275568,187.92,187.88,0.68]
[1762128097327,5.32169655,187.91,187.88,0.68]
[1762128099135,18.62593794,187.91,187.88,0.68]
[1762128099333,13.30424139,187.91,187.88,0.68]
[1762128100046,3.57389062,187.9,187.86,0.67]
[1762128100259,3.57389062,187.9,187.87,0.67]
[1762128101350,5.32226302,187.89,187.87,0.67]
[1762128105263,3.57389062,187.9,187.88,9.78882769]
[1762128105557,5.31999787,187.97,187.88,30.38082769]
[1762128105757,5.31999787,187.97,187.9,9.78882769]
[1762128106132,20.592,188.01,187.92,9.78882769]
[1762128106133,13.29770331,188.01,187.92,9.78882769]
[1762128106352,13.29770331,188.01,187.94,9.78882769]
[1762128106554,3.26178398,188.0,187.94,9.78882769]
[1762128106738,3.26178398,187.99,187.96,9.78882769]
[1762128106936,3.26178398,187.98,187.96,9.78882769]
[1762128107138,5.31914893,188.0,187.98,9.78882769]
[1762128107335,3.2609695,187.99,187.98,9.78882769]
[1762128107543,5.31830027,188.03,187.98,0.67]
[1762128107852,3.2590863,188.02,188.0,9.78882769]
[1762128108254,3.2590863,188.02,187.93,18.62375827]
[1762128108255,3.2590863,188.02,188.01,10.45882769]
[1762128108745,0.1,188.05,188.02,9.78882769]
[1762128108941,0.1,188.05,188.02,10.45882769]
[1762128109260,5.41780963,188.05,188.03,0.67]
[1762128109635,0.1,188.05,188.04,9.78882769]
[1762128109863,0.1,188.05,188.04,10.45882769]
[1762128111534,5.3171738,188.07,188.04,10.45882769]
[1762128111735,5.3171738,188.07,188.06,9.78882769]
[1762128111936,5.41674597,188.09,188.06,9.78882769]
[1762128112143,5.41674597,188.09,188.07,0.67]
[1762128113843,5.41674597,188.09,188.02,9.78882769]
[1762128114049,5.41674597,188.09,188.03,0.67]
[1762128115348,5.41674597,188.09,188.03,21.262]
[1762128115739,5.41674597,188.09,188.05,9.78882769]
[1762128116370,5.41674597,188.09,188.06,0.67]
[1762128118974,5.41674597,188.09,188.07,9.78882769]
[1762128119570,5.41674597,188.09,188.07,0.67]
[1762128120582,5.41674597,188.09,188.04,9.78882769]
[1762128120583,5.41674597,188.09,188.06,9.78882769]
[1762128120748,18.70825535,188.09,188.06,9.78882769]
[1762128120944,0.7,188.08,188.04,9.78882769]
[1762128122078,0.7,188.08,188.0,9.78882769]
[1762128122299,18.61009197,188.07,188.0,9.78882769]
[1762128122487,0.7,188.06,188.0,10.45882769]
[1762128122650,0.7,188.06,188.02,9.78882769]
[1762128123080,18.61009197,188.07,188.02,9.78882769]
[1762128123390,19.31009197,188.07,188.03,0.67]
[1762128123595,18.61009197,188.07,188.03,0.67]
[1762128123802,19.31009197,188.07,188.03,0.67]
[1762128124094,0.7,188.06,188.02,9.78882769]
[1762128124299,18.61207125,188.05,188.0,9.78882769]
[1762128124597,18.61207125,188.05,187.91,21.45594423]
[1762128124810,0.7,188.04,187.95,9.78882769]
[1762128125274,0.7,188.04,187.97,9.78882769]
[1762128125872,18.61405094,188.03,187.97,9.78882769]
[1762128126275,0.68,188.02,187.97,9.78882769]
[1762128126789,0.68,188.02,187.91,21.4560782]
[1762128126790,0.68,188.02,187.92,9.78882769]
[1762128127112,0.68,188.02,187.94,0.7]
[1762128127779,20.592,188.0,187.87,0.7]
[1762128128104,20.592,187.96,187.86,0.2]
[1762128128271,3.23043551,187.95,187.86,0.2]
[1762128128595,45.89517101,187.99,187.87,0.7]
[1762128128596,0.68,187.97,187.87,0.7]
[1762128128894,0.68,187.96,187.88,9.78882769]
[1762128129076,0.68,187.96,187.86,0.2]
[1762128129077,21.272,187.96,187.86,0.2]
[1762128129283,3.23480255,187.95,187.86,0.2]
[1762128129484,3.91480255,187.95,187.86,0.2]
[1762128129700,0.68,187.94,187.86,0.2]
[1762128130101,18.62395572,187.93,187.86,0.2]
[1762128130489,0.68,187.92,187.86,0.9]
[1762128130797,0.68,187.92,187.87,9.78882769]
[1762128131616,0.68,187.92,187.86,0.2]
[1762128132003,0.68,187.92,187.87,9.78882769]
[1762128132407,18.62593794,187.91,187.87,9.78882769]
[1762128132804,0.68,187.9,187.87,9.78882769]
[1762128133014,18.62593794,187.91,187.86,0.2]
[1762128133202,19.30593794,187.91,187.86,0.2]
[1762128133407,19.30593794,187.91,187.87,0.7]
[1762128133697,18.62593794,187.91,187.87,9.78882769]
[1762128133920,5.32226302,187.89,187.87,9.78882769]
[1762128134309,5.32226302,187.89,187.86,0.9]
[1762128134310,5.32226302,187.89,187.88,0.7]
[1762128134502,47.19474649,187.96,187.88,0.7]
[1762128134503,5.32141336,187.92,187.89,9.78882769]
[1762128134699,5.32141336,187.92,187.9,0.7]
[1762128134920,0.68,187.91,187.87,0.7]
[1762128135198,5.32141336,187.92,187.87,0.7]
[1762128135999,18.62395572,187.93,187.87,0.7]
[1762128137499,18.62395572,187.93,187.88,9.78882769]
[1762128137910,18.62395572,187.93,187.9,9.78882769]
[1762128138310,18.62395572,187.93,187.86,0.2]
[1762128138495,18.62395572,187.93,187.87,9.78882769]
[1762128138496,0.68,187.92,187.87,9.78882769]
[1762128138900,18.62593794,187.91,187.86,0.2]
[1762128139116,18.62593794,187.91,187.87,0.7]
[1762128140229,0.68,187.91,187.87,0.7]
[1762128141113,0.68,187.91,187.86,0.2]
[1762128141513,0.68,187.91,187.87,9.78882769]
[1762128141716,3.96466026,187.94,187.87,9.78882769]
[1762128141915,0.68,187.93,187.87,10.48882769]
[1762128142349,5.32141336,187.92,187.86,9.98882769]
[1762128142530,5.32141336,187.92,187.89,9.78882769]
[1762128143021,5.32141336,187.92,187.89,0.7]
[1762128143523,13.30339559,187.93,187.86,0.2]
[1762128143737,13.98339559,187.93,187.88,9.78882769]
[1762128144407,13.98339559,187.93,187.88,0.7]
[1762128144824,0.69,187.92,187.86,0.2]
[1762128145433,0.69,187.92,187.87,9.78882769]
[1762128145923,18.62593794,187.91,187.88,0.72]
[1762128146311,0.69,187.9,187.86,0.2]
[1762128146518,0.69,187.9,187.87,9.78882769]
[1762128147130,18.62593794,187.91,187.88,0.72]
[1762128147430,0.69,187.9,187.86,0.92]
[1762128147824,5.32226302,187.89,187.86,0.92]
[1762128148141,5.32141336,187.92,187.87,0.72]
[1762128148713,5.32114949,187.93,187.87,0.72]
[1762128148914,0.69,187.96,187.87,0.72]
[1762128149430,18.62197391,187.95,187.87,0.72]
[1762128149635,5.32056397,187.95,187.87,10.50882769]
[1762128150135,5.31999787,187.97,187.88,6.0425463]
[1762128150336,18.61999255,187.97,187.88,6.0425463]
[1762128150637,18.61999255,187.97,187.9,9.78882769]
[1762128151136,5.31999787,187.97,187.92,9.78882769]
[1762128151344,5.31999787,187.97,187.93,0.72]
[1762128152349,18.61801159,187.99,187.93,0.72]
[1762128152636,5.31943188,187.99,187.94,9.78882769]
[1762128153026,5.31943188,187.99,187.95,0.72]
[1762128153729,18.61713471,188.0,187.95,0.72]
[1762128154338,19.30713471,188.0,187.95,0.72]
[1762128154522,0.69,187.99,187.95,0.72]
[1762128154729,5.31971486,187.98,187.95,0.72]
[1762128155340,0.69,188.02,187.95,0.72]
[1762128156346,3.92602451,188.02,187.95,0.72]
[1762128157336,5.31886601,188.01,187.95,0.72]
[1762128157647,19.29603105,188.01,187.95,0.72]
[1762128157944,0.68,188.0,187.95,0.72]
[1762128158842,5.31943188,187.99,187.95,0.72]
[1762128159953,5.31914893,188.0,187.95,0.72]
[1762128160322,5.99830027,188.03,187.96,9.78882769]
[1762128160824,5.99830027,188.03,187.97,0.7]
[1762128161355,5.31830027,188.03,187.98,9.78882769]
[1762128161655,5.31830027,188.03,187.99,0.7]
[1762128162033,5.31801744,188.04,187.99,0.7]
[1762128162369,5.31801744,188.04,188.0,9.78882769]
[1762128162670,5.31801744,188.04,188.01,0.7]
[1762128162954,5.31747796,188.06,188.01,0.7]
[1762128163130,5.31747796,188.06,188.02,9.78882769]
[1762128163653,5.31719032,188.07,188.03,0.7]
[1762128164248,5.31690597,188.08,188.04,9.78882769]
[1762128164633,5.31690597,188.08,188.05,0.7]
[1762128167064,5.4166186,188.09,188.05,0.7]
[1762128168947,6.0966186,188.09,188.05,0.7]
[1762128171770,6.0966186,188.09,188.0,0.7]
[1762128171771,0.68,188.08,188.0,0.7]
[1762128171974,3.99409829,188.08,187.98,9.78882769]
[1762128172145,0.68,188.07,187.98,10.48882769]
[1762128172346,0.68,188.07,188.0,9.78882769]
[1762128172748,20.592,188.06,188.0,9.78882769]
[1762128173154,0.68,188.05,188.0,9.78882769]
[1762128173355,5.31801744,188.04,188.0,9.78882769]
[1762128173857,5.99801744,188.04,188.0,9.78882769]
[1762128174059,5.31801744,188.04,188.01,0.7]
[1762128175049,18.6122266,188.05,188.01,0.7]
[1762128175252,19.2922266,188.05,188.01,0.7]
[1762128175857,5.31748324,188.06,188.01,0.7]
[1762128176056,5.31748324,188.06,188.0,9.78882769]
[1762128176266,0.68,188.05,188.0,9.78882769]
[1762128176667,0.68,188.05,188.0,0.7]
[1762128177073,5.31801744,188.04,188.0,0.7]
[1762128177394,0.68,188.05,188.0,0.7]
[1762128178350,5.99778747,188.05,188.0,0.7]
[1762128178550,5.31778747,188.05,188.0,0.7]
[1762128178765,5.99778747,188.05,188.0,0.7]
[1762128179849,5.31778747,188.05,188.0,0.7]
[1762128180053,0.68,188.04,187.99,9.78882769]
[1762128180473,5.31830027,188.03,187.99,0.7]
[1762128180949,5.31830027,188.03,187.96,0.7]
[1762128180950,0.68,188.02,187.96,0.7]
[1762128181152,0.68,188.02,187.97,9.78882769]
[1762128182177,5.31886601,188.01,187.97,9.78882769]
[1762128182415,18.61603105,188.01,187.96,0.7]
[1762128182561,0.68,188.0,187.95,9.78882769]
[1762128183066,0.68,188.0,187.96,0.7]
[1762128184188,5.31943188,187.99,187.96,0.7]
[1762128184499,5.31858312,188.02,187.96,0.7]
[1762128184801,5.31858312,188.02,187.97,9.78882769]
[1762128185182,5.31858312,188.02,187.98,0.7]
[1762128185375,5.31858312,188.02,187.99,9.78882769]
[1762128185581,5.99858312,188.02,187.99,9.78882769]
[1762128186182,18.61349664,188.04,187.99,10.46882769]
[1762128186385,18.61349664,188.04,187.95,9.78882769]
[1762128186386,3.98133464,188.03,187.95,9.78882769]
[1762128186894,0.66,188.02,187.95,9.78882769]
[1762128187097,0.66,188.02,187.89,11.4122263]
[1762128187098,20.592,188.01,187.89,0.68]
[1762128187271,15.99,187.99,187.86,0.2]
[1762128187474,20.592,187.97,187.86,0.2]
[1762128187690,3.32133464,187.96,187.86,0.2]
[1762128187894,3.32133464,187.95,187.86,0.2]
[1762128188117,3.32133464,187.94,187.86,0.2]
[1762128188414,21.94529036,187.93,187.86,0.2]
[1762128188710,3.32133464,187.92,187.86,0.2]
[1762128188907,3.98133464,187.92,187.86,0.2]
[1762128189109,0.66,187.91,187.86,0.2]
[1762128189581,20.592,187.9,187.86,0.2]
[1762128189784,3.32133464,187.89,187.86,0.2]
[1762128189991,0.66,187.89,187.86,0.2]
[1762128190190,5.32282961,187.87,187.86,0.2]
[1762128190510,5.32255156,187.88,187.86,0.2]
[1762128191510,5.98255156,187.88,187.86,0.2]
[1762128191678,5.32255156,187.88,187.86,0.2]
[1762128191876,0.66,187.87,187.86,0.2]
[1762128192076,5.32255156,187.88,187.86,0.2]
[1762128192286,5.98255156,187.88,187.86,0.2]
[1762128192900,0.66,187.87,187.86,0.2]
[1762128193115,0.66,187.93,187.87,0.68]
[1762128193280,5.32165353,187.92,187.87,0.68]
[1762128193602,5.98165353,187.92,187.87,0.68]
[1762128194176,5.32165353,187.92,187.87,0.68]
[1762128194401,5.3211302,187.93,187.88,9.78882769]
[1762128194608,5.9811302,187.93,187.88,9.78882769]
[1762128194772,5.9811302,187.93,187.88,0.68]
[1762128195816,19.28395572,187.93,187.88,0.68]
[1762128196119,0.66,187.92,187.88,0.68]
[1762128196413,5.32169655,187.91,187.88,0.68]
[1762128196921,0.66,187.9,187.86,0.2]
[1762128197212,3.9821024,187.9,187.86,0.2]
[1762128197588,0.66,187.89,187.86,0.2]
[1762128198398,5.3225463,187.88,187.86,0.2]
[1762128199206,5.3225463,187.88,187.86,0.88]
[1762128199389,5.3225463,187.88,187.86,0.2]
[1762128199591,5.3225463,187.88,187.86,0.88]
[1762128200186,5.32226302,187.89,187.86,0.88]
[1762128200512,5.32226302,187.89,187.86,0.2]
[1762128200815,5.98226302,187.89,187.86,0.2]
[1762128201397,5.32226302,187.89,187.86,0.2]
[1762128201600,5.98226302,187.89,187.86,0.2]
[1762128204210,5.32226302,187.89,187.86,0.88]
[1762128204921,26.57378971,187.91,187.86,0.85]
[1762128205217,0.7,187.9,187.86,0.85]
[1762128205716,5.32226302,187.89,187.86,0.2]
[1762128206310,5.32226302,187.89,187.86,0.85]
[1762128206607,6.02201728,187.9,187.86,0.85]
[1762128207712,5.3225463,187.88,187.86,0.2]
[1762128207912,0.7,187.89,187.86,0.2]
[1762128207913,6.0222744,187.89,187.86,0.2]
[1762128208614,0.7,187.88,187.86,0.2]
[1762128208919,5.3222744,187.89,187.86,0.2]
[1762128209419,5.3222744,187.89,187.87,0.65]
[1762128209711,5.32197977,187.9,187.86,0.85]
[1762128209892,6.02197977,187.9,187.86,0.85]
[1762128210092,6.0211302,187.93,187.87,0.65]
[1762128211293,5.3211302,187.93,187.87,0.65]
[1762128211490,0.7,187.92,187.86,9.98882769]
[1762128211711,0.7,187.92,187.86,10.63882769]
[1762128212802,5.32169655,187.91,187.86,10.63882769]
[1762128213203,6.02169655,187.91,187.86,10.63882769]
[1762128213409,19.32593794,187.91,187.86,0.85]
[1762128214287,0.7,187.9,187.86,0.2]
[1762128214490,5.32226302,187.89,187.86,0.2]
[1762128214916,21.292,187.94,187.88,9.78882769]
[1762128215310,21.292,187.94,187.88,0.65]
[1762128216109,3.99705644,187.93,187.86,0.2]
[1762128216316,3.99705644,187.93,187.86,0.92]
[1762128216511,18.62593794,187.91,187.86,0.2]
[1762128216817,3.31705644,187.9,187.86,0.2]
[1762128217022,0.68,187.89,187.86,0.2]
[1762128217601,3.31705644,187.9,187.86,0.92]
[1762128217810,5.32169655,187.91,187.87,0.72]
[1762128218116,6.00169655,187.91,187.86,0.2]
[1762128218422,3.32145231,187.9,187.86,0.92]
[1762128218598,6.00169655,187.91,187.86,0.92]
[1762128218900,0.68,187.9,187.86,0.92]
[1762128219329,3.32241463,187.9,187.87,0.72]
[1762128220210,4.00241463,187.9,187.86,0.2]
[1762128220407,4.00241463,187.9,187.86,0.92]
[1762128220626,9.32461565,187.9,187.86,0.92]
[1762128220920,6.00220102,187.9,187.86,0.92]
[1762128221097,3.32418676,187.89,187.86,0.92]
[1762128222502,3.32418676,187.89,187.87,0.72]
[1762128223392,8.64646258,187.89,187.86,0.2]
[1762128223597,3.32418676,187.88,187.86,0.92]
[1762128223817,5.32191407,187.91,187.87,9.78882769]
[1762128223999,3.32946957,187.9,187.87,10.50882769]
[1762128224316,3.32946957,187.89,187.88,0.72]
[1762128224699,8.65145262,187.9,187.88,0.72]
[1762128224902,3.32946957,187.89,187.88,0.72]
[1762128225101,3.32946957,187.89,187.86,0.2]
[1762128225308,3.32946957,187.89,187.87,9.78882769]
[1762128225718,3.32946957,187.89,187.87,0.72]
[1762128226128,3.32946957,187.89,187.87,10.50882769]
[1762128226432,3.32946957,187.88,187.87,10.50882769]
[1762128226612,5.32177224,187.91,187.87,10.50882769]
[1762128226930,3.19886858,187.9,187.87,10.50882769]
[1762128227224,3.19886858,187.9,187.88,0.72]
[1762128227806,5.32130293,187.93,187.88,0.72]
[1762128228031,3.19961879,187.92,187.88,0.72]
[1762128228227,6.00130293,187.93,187.88,0.72]
[1762128229008,13.29924251,187.99,187.89,10.32105399]
[1762128229532,19.29900201,187.98,187.9,0.72]
[1762128230037,19.29900201,187.98,187.92,9.78882769]
[1762128230423,5.99971486,187.98,187.92,10.50882769]
[1762128230626,5.31971486,187.98,187.92,10.50882769]
[1762128230821,0.68,187.97,187.92,10.50882769]
[1762128231132,0.68,187.97,187.92,0.72]
[1762128232238,5.32028091,187.96,187.92,0.72]
[1762128232620,6.00028091,187.96,187.92,0.72]
[1762128236945,5.32028091,187.96,187.92,0.72]
[1762128238429,6.00028091,187.96,187.92,0.72]
[1762128240142,0.68,187.95,187.91,9.78882769]
[1762128240345,0.68,187.95,187.9,9.78882769]
[1762128240546,0.68,187.95,187.9,10.50882769]